[Event "Titled Tuesday Blitz June 6 Early 2023"]
[White "Larina, Maria"]
[Black "Poltorak, Sebastian"]
[WhiteFideId "24113182"]
[BlackFideId "1199498"]
[WhiteElo "1848"]
[BlackElo "2195"]
[Result "0-1"]
[Round "1"]
[TimeControl "180+2"]
[Date "2023.06.06"]
[WhiteClock "0:00:29"]
[BlackClock "0:00:55"]
[Board "181"]

1. e4 {[%clk 0:02:59]}  c5 {[%clk 0:02:59]} 2. Nc3 {[%clk 0:02:59]}  Nc6 {[%clk 0:02:56]} 3. g3 {[%clk 0:02:59]}  d6 {[%clk 0:02:51]} 4. Bg2 {[%clk 0:02:59]}  Nf6 {[%clk 0:02:52]} 5. d3 {[%clk 0:02:58]}  g6 {[%clk 0:02:52]} 6. h3 {[%clk 0:02:56]}  Bg7 {[%clk 0:02:52]} 7. Be3 {[%clk 0:02:56]}  Rb8 {[%clk 0:02:47]} 8. Qd2 {[%clk 0:02:56]}  h5 {[%clk 0:02:45]} 9. Nge2 {[%clk 0:02:41]}  b5 {[%clk 0:02:38]} 10. Bg5 {[%clk 0:02:39]}  b4 {[%clk 0:02:37]} 11. Nd1 {[%clk 0:02:37]}  O-O {[%clk 0:02:28]} 12. O-O {[%clk 0:02:37]}  Nd4 {[%clk 0:02:23]} 13. Ne3 {[%clk 0:02:26]}  Nh7 {[%clk 0:02:15]} 14. h4 {[%clk 0:01:42]}  Nxe2+ {[%clk 0:02:11]} 15. Qxe2 {[%clk 0:01:42]}  f6 {[%clk 0:02:11]} 16. Bf4 {[%clk 0:01:41]}  e5 {[%clk 0:02:12]} 17. Nd5 {[%clk 0:01:40]}  exf4 {[%clk 0:02:11]} 18. Nxf4 {[%clk 0:01:40]}  Qe8 {[%clk 0:02:00]} 19. a3 {[%clk 0:01:26]}  b3 {[%clk 0:01:42]} 20. c3 {[%clk 0:01:25]}  f5 {[%clk 0:01:36]} 21. Nd5 {[%clk 0:01:22]}  Nf6 {[%clk 0:01:34]} 22. Nxf6+ {[%clk 0:01:15]}  Bxf6 {[%clk 0:01:32]} 23. Rae1 {[%clk 0:01:15]}  Kg7 {[%clk 0:01:28]} 24. Qd2 {[%clk 0:01:15]}  Qf7 {[%clk 0:01:25]} 25. d4 {[%clk 0:01:14]}  cxd4 {[%clk 0:01:24]} 26. cxd4 {[%clk 0:01:15]}  Ba6 {[%clk 0:01:22]} 27. e5 {[%clk 0:01:13]}  Be7 {[%clk 0:01:19]} 28. Qa5 {[%clk 0:00:54]}  Bxf1 {[%clk 0:01:18]} 29. Bxf1 {[%clk 0:00:55]}  dxe5 {[%clk 0:01:12]} 30. dxe5 {[%clk 0:00:40]}  f4 {[%clk 0:01:10]} 31. e6 {[%clk 0:00:40]}  Qf6 {[%clk 0:01:08]} 32. Qd2 {[%clk 0:00:31]}  fxg3 {[%clk 0:01:07]} 33. fxg3 {[%clk 0:00:32]}  Rbd8 {[%clk 0:01:05]} 34. Qe2 {[%clk 0:00:31]}  Bc5+ {[%clk 0:01:05]} 35. Kh2 {[%clk 0:00:31]}  Qf2+ {[%clk 0:01:04]} 36. Kh3 {[%clk 0:00:30]}  Qxe2 {[%clk 0:00:58]} 37. Bxe2 {[%clk 0:00:31]}  Rd2 {[%clk 0:00:56]} 38. Bc4 {[%clk 0:00:29]}  Rff2 {[%clk 0:00:55]} 39. g4 {[%clk 0:00:29]}  Rf3# {[%clk 0:00:55]} 0-1


[Site "https://www.chess.com"]

[Event "Titled Tuesday Blitz June 6 Early 2023"]
[White "Molenda, Marcin"]
[Black "Cramling Bellon, Anna"]
[WhiteFideId "1173065"]
[BlackFideId "32009232"]
[WhiteElo "2286"]
[BlackElo "1976"]
[Result "1-0"]
[Round "1"]
[TimeControl "180+2"]
[Date "2023.06.06"]
[WhiteClock "0:00:49"]
[BlackClock "0:00:05"]
[Board "182"]

1. c4 {[%clk 0:02:56]}  c5 {[%clk 0:02:59]} 2. Nf3 {[%clk 0:02:53]}  Nc6 {[%clk 0:02:56]} 3. d4 {[%clk 0:02:52]}  cxd4 {[%clk 0:02:54]} 4. Nxd4 {[%clk 0:02:53]}  Nf6 {[%clk 0:02:53]} 5. Nc3 {[%clk 0:02:52]}  d6 {[%clk 0:02:52]} 6. g3 {[%clk 0:02:48]}  g6 {[%clk 0:02:51]} 7. Bg2 {[%clk 0:02:46]}  Bd7 {[%clk 0:02:51]} 8. O-O {[%clk 0:02:46]}  Bg7 {[%clk 0:02:52]} 9. Nc2 {[%clk 0:02:46]}  O-O {[%clk 0:02:49]} 10. Rb1 {[%clk 0:02:44]}  Ne5 {[%clk 0:02:43]} 11. b3 {[%clk 0:02:42]}  Bc6 {[%clk 0:02:35]} 12. e4 {[%clk 0:02:36]}  Nfd7 {[%clk 0:02:14]} 13. Nd4 {[%clk 0:02:34]}  Nb6 {[%clk 0:02:08]} 14. f4 {[%clk 0:02:28]}  Ned7 {[%clk 0:01:52]} 15. Be3 {[%clk 0:02:24]}  Rc8 {[%clk 0:01:38]} 16. Qd2 {[%clk 0:02:13]}  Nc5 {[%clk 0:01:25]} 17. Nxc6 {[%clk 0:02:06]}  bxc6 {[%clk 0:01:20]} 18. Rbd1 {[%clk 0:02:00]}  Qc7 {[%clk 0:01:17]} 19. Rfe1 {[%clk 0:01:51]}  Rfd8 {[%clk 0:01:13]} 20. Kh1 {[%clk 0:01:50]}  a5 {[%clk 0:01:03]} 21. Qc2 {[%clk 0:01:33]}  h5 {[%clk 0:00:56]} 22. e5 {[%clk 0:01:24]}  a4 {[%clk 0:00:46]} 23. Bxc5 {[%clk 0:01:02]}  dxc5 {[%clk 0:00:45]} 24. Ne4 {[%clk 0:01:02]}  axb3 {[%clk 0:00:37]} 25. axb3 {[%clk 0:01:01]}  Nd7 {[%clk 0:00:30]} 26. Bh3 {[%clk 0:01:01]}  Rb8 {[%clk 0:00:27]} 27. e6 {[%clk 0:00:55]}  Nf8 {[%clk 0:00:10]} 28. exf7+ {[%clk 0:00:53]}  Kxf7 {[%clk 0:00:10]} 29. Ng5+ {[%clk 0:00:50]}  Kg8 {[%clk 0:00:10]} 30. Be6+ {[%clk 0:00:49]}  Nxe6 {[%clk 0:00:10]} 31. Nxe6 {[%clk 0:00:49]}  Rxd1 {[%clk 0:00:10]} 32. Rxd1 {[%clk 0:00:49]}  Qc8 {[%clk 0:00:04]} 33. Qxg6 {[%clk 0:00:49]}  Qe8 {[%clk 0:00:05]} 34. Qxg7# {[%clk 0:00:49]} 1-0


[Site "https://www.chess.com"]

[Event "Titled Tuesday Blitz June 6 Early 2023"]
[White "Bruedigam, Martin"]
[Black "ZeGood_ZeBad_ZeUgly"]
[WhiteFideId "24608033"]
[WhiteElo "2331"]
[BlackElo "2198"]
[Result "1-0"]
[Round "1"]
[TimeControl "180+2"]
[Date "2023.06.06"]
[WhiteClock "0:00:19"]
[BlackClock "0:00:07"]
[Board "184"]

1. d4 {[%clk 0:02:57]}  Nf6 {[%clk 0:02:59]} 2. c4 {[%clk 0:02:58]}  e6 {[%clk 0:02:59]} 3. Nc3 {[%clk 0:02:58]}  Bb4 {[%clk 0:02:58]} 4. Bd2 {[%clk 0:02:58]}  d6 {[%clk 0:02:48]} 5. e3 {[%clk 0:02:57]}  e5 {[%clk 0:02:46]} 6. Bd3 {[%clk 0:02:57]}  O-O {[%clk 0:02:43]} 7. Nge2 {[%clk 0:02:57]}  Nc6 {[%clk 0:02:39]} 8. O-O {[%clk 0:02:50]}  a5 {[%clk 0:02:33]} 9. Qc2 {[%clk 0:02:47]}  h6 {[%clk 0:02:16]} 10. a3 {[%clk 0:02:39]}  Bxc3 {[%clk 0:02:16]} 11. Bxc3 {[%clk 0:02:39]}  Qe7 {[%clk 0:02:08]} 12. Ng3 {[%clk 0:02:40]}  Re8 {[%clk 0:02:01]} 13. b4 {[%clk 0:02:37]}  e4 {[%clk 0:01:57]} 14. Be2 {[%clk 0:02:37]}  h5 {[%clk 0:01:50]} 15. b5 {[%clk 0:01:19]}  Nd8 {[%clk 0:01:45]} 16. d5 {[%clk 0:01:08]}  h4 {[%clk 0:01:16]} 17. Nh1 {[%clk 0:01:08]}  Ng4 {[%clk 0:01:10]} 18. h3 {[%clk 0:01:05]}  Nh6 {[%clk 0:01:08]} 19. f4 {[%clk 0:01:00]}  Nf5 {[%clk 0:00:55]} 20. Qd2 {[%clk 0:00:59]}  b6 {[%clk 0:00:43]} 21. Bg4 {[%clk 0:01:00]}  f6 {[%clk 0:00:42]} 22. Qe1 {[%clk 0:00:56]}  Nh6 {[%clk 0:00:19]} 23. Bxc8 {[%clk 0:00:55]}  Rxc8 {[%clk 0:00:20]} 24. Qxh4 {[%clk 0:00:55]}  Ndf7 {[%clk 0:00:20]} 25. Ng3 {[%clk 0:00:47]}  Nh8 {[%clk 0:00:19]} 26. Qh5 {[%clk 0:00:47]}  Qf7 {[%clk 0:00:15]} 27. Qxf7+ {[%clk 0:00:44]}  Kxf7 {[%clk 0:00:16]} 28. Ne2 {[%clk 0:00:43]}  Ng6 {[%clk 0:00:16]} 29. Nd4 {[%clk 0:00:38]}  Nh4 {[%clk 0:00:13]} 30. Kf2 {[%clk 0:00:38]}  N6f5 {[%clk 0:00:10]} 31. Ne2 {[%clk 0:00:37]}  Rh8 {[%clk 0:00:07]} 32. Rh1 {[%clk 0:00:32]}  Rh7 {[%clk 0:00:07]} 33. g4 {[%clk 0:00:24]}  Ne7 {[%clk 0:00:04]} 34. Ng3 {[%clk 0:00:17]}  Rch8 {[%clk 0:00:04]} 35. Nxe4 {[%clk 0:00:17]}  Nhg6 {[%clk 0:00:02]} 36. Kg3 {[%clk 0:00:18]}  f5 {[%clk 0:00:02]} 37. Ng5+ {[%clk 0:00:18]}  Ke8 {[%clk 0:00:02]} 38. Nxh7 {[%clk 0:00:19]}  Rxh7 {[%clk 0:00:02]} 39. Rag1 {[%clk 0:00:18]}  Nh4 {[%clk 0:00:02]} 40. Kf2 {[%clk 0:00:18]}  fxg4 {[%clk 0:00:02]} 41. hxg4 {[%clk 0:00:19]}  g6 {[%clk 0:00:02]} 42. Rg3 {[%clk 0:00:18]}  Kf7 {[%clk 0:00:03]} 43. Rgh3 {[%clk 0:00:19]}  g5 {[%clk 0:00:04]} 44. fxg5 {[%clk 0:00:18]}  Neg6 {[%clk 0:00:05]} 45. Bf6 {[%clk 0:00:17]}  Ke8 {[%clk 0:00:04]} 46. Ke2 {[%clk 0:00:18]}  Kd7 {[%clk 0:00:04]} 47. Kd3 {[%clk 0:00:18]}  Rf7 {[%clk 0:00:03]} 48. Rxh4 {[%clk 0:00:17]}  Nxh4 {[%clk 0:00:04]} 49. Rxh4 {[%clk 0:00:18]}  Rf8 {[%clk 0:00:03]} 50. Rh8 {[%clk 0:00:18]}  Kc8 {[%clk 0:00:03]} 51. Rxf8+ {[%clk 0:00:18]}  Kb7 {[%clk 0:00:03]} 52. g6 {[%clk 0:00:19]}  Ka7 {[%clk 0:00:04]} 53. g7 {[%clk 0:00:19]}  Kb7 {[%clk 0:00:05]} 54. g8=Q {[%clk 0:00:20]}  Ka7 {[%clk 0:00:06]} 55. Ra8+ {[%clk 0:00:20]}  Kb7 {[%clk 0:00:07]} 56. Qc8# {[%clk 0:00:19]} 1-0


[Site "https://www.chess.com"]

[Event "Titled Tuesday Blitz June 6 Early 2023"]
[White "Ruge, Edison"]
[Black "Streltsov, Alexey"]
[WhiteFideId "4401000"]
[BlackFideId "24104434"]
[WhiteElo "2175"]
[BlackElo "2544"]
[Result "0-1"]
[Round "1"]
[TimeControl "180+2"]
[Date "2023.06.06"]
[WhiteClock "0:00:07"]
[BlackClock "0:00:18"]
[Board "185"]

1. e4 {[%clk 0:02:56]}  c6 {[%clk 0:02:59]} 2. d3 {[%clk 0:02:55]}  d5 {[%clk 0:03:00]} 3. Nd2 {[%clk 0:02:55]}  e5 {[%clk 0:02:59]} 4. Ngf3 {[%clk 0:02:56]}  Bd6 {[%clk 0:02:59]} 5. g3 {[%clk 0:02:56]}  Nf6 {[%clk 0:02:59]} 6. Bg2 {[%clk 0:02:55]}  O-O {[%clk 0:02:59]} 7. O-O {[%clk 0:02:55]}  Re8 {[%clk 0:03:00]} 8. h3 {[%clk 0:02:54]}  Nbd7 {[%clk 0:03:00]} 9. Re1 {[%clk 0:02:54]}  Nf8 {[%clk 0:03:00]} 10. Nf1 {[%clk 0:02:51]}  Ng6 {[%clk 0:03:00]} 11. N1h2 {[%clk 0:02:50]}  Be6 {[%clk 0:02:58]} 12. Nf1 {[%clk 0:02:49]}  Qd7 {[%clk 0:02:58]} 13. Kh2 {[%clk 0:02:47]}  Rad8 {[%clk 0:02:58]} 14. Qe2 {[%clk 0:02:45]}  h6 {[%clk 0:02:35]} 15. a3 {[%clk 0:02:41]}  b5 {[%clk 0:02:34]} 16. b3 {[%clk 0:02:40]}  a5 {[%clk 0:02:28]} 17. Bb2 {[%clk 0:02:40]}  d4 {[%clk 0:02:26]} 18. Bc1 {[%clk 0:02:37]}  Qe7 {[%clk 0:02:22]} 19. a4 {[%clk 0:02:34]}  Ra8 {[%clk 0:02:20]} 20. Bd2 {[%clk 0:02:34]}  Bb4 {[%clk 0:02:17]} 21. Bxb4 {[%clk 0:02:29]}  Qxb4 {[%clk 0:02:08]} 22. Qd2 {[%clk 0:02:28]}  Qxd2 {[%clk 0:01:52]} 23. N1xd2 {[%clk 0:02:23]}  Nd7 {[%clk 0:01:52]} 24. h4 {[%clk 0:02:19]}  Nc5 {[%clk 0:01:49]} 25. h5 {[%clk 0:02:18]}  Nf8 {[%clk 0:01:42]} 26. Nxe5 {[%clk 0:02:18]}  Bxb3 {[%clk 0:01:40]} 27. Nxb3 {[%clk 0:02:15]}  Rxe5 {[%clk 0:01:33]} 28. Nxd4 {[%clk 0:02:03]}  Nxa4 {[%clk 0:01:32]} 29. f4 {[%clk 0:01:57]}  Rxh5+ {[%clk 0:01:30]} 30. Kg1 {[%clk 0:01:55]}  Rc5 {[%clk 0:01:13]} 31. e5 {[%clk 0:01:52]}  Ra6 {[%clk 0:01:14]} 32. Re2 {[%clk 0:01:41]}  Ne6 {[%clk 0:01:14]} 33. Nb3 {[%clk 0:01:39]}  Rc3 {[%clk 0:01:09]} 34. Rd2 {[%clk 0:01:35]}  c5 {[%clk 0:01:08]} 35. f5 {[%clk 0:01:28]}  Nd4 {[%clk 0:01:09]} 36. Nxd4 {[%clk 0:01:27]}  cxd4 {[%clk 0:01:09]} 37. Bd5 {[%clk 0:01:23]}  Rc5 {[%clk 0:01:00]} 38. Bb3 {[%clk 0:01:22]}  Rxe5 {[%clk 0:01:01]} 39. Bxa4 {[%clk 0:01:20]}  bxa4 {[%clk 0:01:02]} 40. Rxa4 {[%clk 0:01:20]}  Rxf5 {[%clk 0:00:59]} 41. Rxd4 {[%clk 0:01:20]}  a4 {[%clk 0:01:00]} 42. c4 {[%clk 0:01:19]}  a3 {[%clk 0:00:52]} 43. Ra2 {[%clk 0:01:19]}  Rg6 {[%clk 0:00:30]} 44. g4 {[%clk 0:01:13]}  Ra5 {[%clk 0:00:24]} 45. Kf2 {[%clk 0:01:13]}  f5 {[%clk 0:00:20]} 46. Rd8+ {[%clk 0:00:41]}  Kf7 {[%clk 0:00:19]} 47. gxf5 {[%clk 0:00:35]}  Rxf5+ {[%clk 0:00:20]} 48. Ke3 {[%clk 0:00:34]}  Ra6 {[%clk 0:00:21]} 49. Ke4 {[%clk 0:00:31]}  Rf1 {[%clk 0:00:20]} 50. Rb8 {[%clk 0:00:27]}  g5 {[%clk 0:00:19]} 51. c5 {[%clk 0:00:26]}  g4 {[%clk 0:00:19]} 52. Rb7+ {[%clk 0:00:25]}  Kf6 {[%clk 0:00:18]} 53. Rb6+ {[%clk 0:00:19]}  Rxb6 {[%clk 0:00:19]} 54. cxb6 {[%clk 0:00:20]}  Kg5 {[%clk 0:00:18]} 55. Rxa3 {[%clk 0:00:20]}  Rb1 {[%clk 0:00:19]} 56. Ra5+ {[%clk 0:00:16]}  Kh4 {[%clk 0:00:16]} 57. Ra6 {[%clk 0:00:14]}  g3 {[%clk 0:00:16]} 58. b7 {[%clk 0:00:15]}  h5 {[%clk 0:00:13]} 59. Ra4 {[%clk 0:00:12]}  Rxb7 {[%clk 0:00:13]} 60. Kf3+ {[%clk 0:00:12]}  Kh3 {[%clk 0:00:14]} 61. Ra1 {[%clk 0:00:11]}  Rf7+ {[%clk 0:00:14]} 62. Ke3 {[%clk 0:00:12]}  g2 {[%clk 0:00:15]} 63. d4 {[%clk 0:00:11]}  Rf1 {[%clk 0:00:15]} 64. Ra2 {[%clk 0:00:10]}  g1=Q+ {[%clk 0:00:15]} 65. Ke4 {[%clk 0:00:09]}  Rf2 {[%clk 0:00:16]} 66. Ra3+ {[%clk 0:00:08]}  Qg3 {[%clk 0:00:17]} 67. Rxg3+ {[%clk 0:00:07]}  Kxg3 {[%clk 0:00:17]} 68. d5 {[%clk 0:00:07]}  h4 {[%clk 0:00:18]} 69. d6 {[%clk 0:00:07]}  Rd2 {[%clk 0:00:18]} 0-1


[Site "https://www.chess.com"]

[Event "Titled Tuesday Blitz June 6 Early 2023"]
[White "Vestby-Ellingsen, Mads"]
[Black "Antonova, Nadezhda"]
[WhiteFideId "1520857"]
[BlackFideId "14700182"]
[WhiteElo "2247"]
[BlackElo "1795"]
[Result "1-0"]
[Round "1"]
[TimeControl "180+2"]
[Date "2023.06.06"]
[WhiteClock "0:01:03"]
[BlackClock "0:00:15"]
[Board "186"]

1. c4 {[%clk 0:03:00]}  Nf6 {[%clk 0:02:08]} 2. g3 {[%clk 0:02:54]}  g6 {[%clk 0:02:05]} 3. Bg2 {[%clk 0:02:53]}  Bg7 {[%clk 0:02:05]} 4. Nf3 {[%clk 0:02:53]}  O-O {[%clk 0:02:06]} 5. O-O {[%clk 0:02:53]}  d6 {[%clk 0:02:06]} 6. Nc3 {[%clk 0:02:53]}  Nc6 {[%clk 0:02:05]} 7. d4 {[%clk 0:02:51]}  a6 {[%clk 0:02:05]} 8. b3 {[%clk 0:02:47]}  Rb8 {[%clk 0:02:04]} 9. Bb2 {[%clk 0:02:36]}  b5 {[%clk 0:02:04]} 10. cxb5 {[%clk 0:02:35]}  axb5 {[%clk 0:02:03]} 11. Rc1 {[%clk 0:02:34]}  b4 {[%clk 0:01:56]} 12. Na4 {[%clk 0:02:32]}  Bd7 {[%clk 0:01:56]} 13. d5 {[%clk 0:02:28]}  Na7 {[%clk 0:01:52]} 14. Nd4 {[%clk 0:02:28]}  Nb5 {[%clk 0:01:27]} 15. Nc6 {[%clk 0:02:13]}  Bxc6 {[%clk 0:01:25]} 16. Rxc6 {[%clk 0:02:14]}  Nd7 {[%clk 0:01:07]} 17. Bxg7 {[%clk 0:02:13]}  Kxg7 {[%clk 0:01:07]} 18. Qd2 {[%clk 0:02:11]}  Ne5 {[%clk 0:01:00]} 19. Rc2 {[%clk 0:01:53]}  Na3 {[%clk 0:01:00]} 20. Rcc1 {[%clk 0:01:53]}  Kg8 {[%clk 0:00:53]} 21. f4 {[%clk 0:01:49]}  Nd7 {[%clk 0:00:51]} 22. e4 {[%clk 0:01:44]}  f6 {[%clk 0:00:38]} 23. Bh3 {[%clk 0:01:42]}  Rb7 {[%clk 0:00:24]} 24. Kg2 {[%clk 0:01:31]}  Kg7 {[%clk 0:00:24]} 25. Qe3 {[%clk 0:01:19]}  Nb6 {[%clk 0:00:21]} 26. Nxb6 {[%clk 0:01:16]}  Rxb6 {[%clk 0:00:22]} 27. Qd4 {[%clk 0:01:12]}  Qa8 {[%clk 0:00:16]} 28. Rxc7 {[%clk 0:01:11]}  Rb7 {[%clk 0:00:16]} 29. Rxb7 {[%clk 0:01:07]}  Qxb7 {[%clk 0:00:17]} 30. Rc1 {[%clk 0:01:07]}  Rc8 {[%clk 0:00:14]} 31. Rxc8 {[%clk 0:01:04]}  Qxc8 {[%clk 0:00:15]} 32. Bxc8 {[%clk 0:01:03]} 1-0


[Site "https://www.chess.com"]

[Event "Titled Tuesday Blitz June 6 Early 2023"]
[White "Chemin, Justo Reinaldo"]
[Black "Mika, Tomasz"]
[WhiteFideId "2101580"]
[BlackFideId "1132970"]
[WhiteElo "1940"]
[BlackElo "2186"]
[Result "1-0"]
[Round "1"]
[TimeControl "180+2"]
[Date "2023.06.06"]
[WhiteClock "0:00:10"]
[BlackClock "0:00:21"]
[Board "187"]

1. d4 {[%clk 0:02:53]}  Nf6 {[%clk 0:02:52]} 2. Nf3 {[%clk 0:02:53]}  e6 {[%clk 0:02:52]} 3. e3 {[%clk 0:02:53]}  d5 {[%clk 0:02:53]} 4. b3 {[%clk 0:02:53]}  c5 {[%clk 0:02:53]} 5. Bb2 {[%clk 0:02:52]}  Nc6 {[%clk 0:02:53]} 6. a3 {[%clk 0:02:51]}  Be7 {[%clk 0:02:53]} 7. dxc5 {[%clk 0:02:50]}  Bxc5 {[%clk 0:02:53]} 8. b4 {[%clk 0:02:50]}  Be7 {[%clk 0:02:53]} 9. c4 {[%clk 0:02:50]}  dxc4 {[%clk 0:02:51]} 10. Qxd8+ {[%clk 0:02:49]}  Bxd8 {[%clk 0:02:48]} 11. Bxc4 {[%clk 0:02:49]}  O-O {[%clk 0:02:48]} 12. Nbd2 {[%clk 0:02:45]}  b6 {[%clk 0:02:48]} 13. Rc1 {[%clk 0:02:42]}  Bb7 {[%clk 0:02:48]} 14. O-O {[%clk 0:02:35]}  Be7 {[%clk 0:02:47]} 15. Rfd1 {[%clk 0:02:34]}  Rfd8 {[%clk 0:02:46]} 16. Bb5 {[%clk 0:02:21]}  Rdc8 {[%clk 0:02:45]} 17. Nb3 {[%clk 0:02:13]}  Kf8 {[%clk 0:02:26]} 18. Bxf6 {[%clk 0:01:59]}  Bxf6 {[%clk 0:02:18]} 19. Rd7 {[%clk 0:01:57]}  a6 {[%clk 0:02:06]} 20. Rxb7 {[%clk 0:01:48]}  axb5 {[%clk 0:02:06]} 21. Rxb6 {[%clk 0:01:48]}  Rxa3 {[%clk 0:02:04]} 22. Nbd4 {[%clk 0:01:22]}  Ne7 {[%clk 0:02:00]} 23. Rxc8+ {[%clk 0:01:20]}  Nxc8 {[%clk 0:02:01]} 24. g4 {[%clk 0:01:14]}  Ke8 {[%clk 0:01:49]} 25. Rxb5 {[%clk 0:01:12]}  Nd6 {[%clk 0:01:38]} 26. Rb8+ {[%clk 0:01:07]}  Kd7 {[%clk 0:01:37]} 27. b5 {[%clk 0:01:03]}  Bd8 {[%clk 0:01:31]} 28. Ne5+ {[%clk 0:00:47]}  Kc7 {[%clk 0:01:27]} 29. Ndc6 {[%clk 0:00:48]}  Nc8 {[%clk 0:00:57]} 30. b6+ {[%clk 0:00:25]}  Nxb6 {[%clk 0:00:57]} 31. Rxd8 {[%clk 0:00:25]}  f6 {[%clk 0:00:58]} 32. Rg8 {[%clk 0:00:14]}  fxe5 {[%clk 0:00:58]} 33. Nxe5 {[%clk 0:00:13]}  Nd5 {[%clk 0:00:57]} 34. Rxg7+ {[%clk 0:00:13]}  Kd8 {[%clk 0:00:56]} 35. Rxh7 {[%clk 0:00:12]}  Ra1+ {[%clk 0:00:57]} 36. Kg2 {[%clk 0:00:12]}  Ra2 {[%clk 0:00:58]} 37. h4 {[%clk 0:00:12]}  Nxe3+ {[%clk 0:00:57]} 38. Kf3 {[%clk 0:00:11]}  Nd5 {[%clk 0:00:57]} 39. g5 {[%clk 0:00:11]}  Ra4 {[%clk 0:00:56]} 40. g6 {[%clk 0:00:10]}  Ra3+ {[%clk 0:00:49]} 41. Kg2 {[%clk 0:00:08]}  Nf6 {[%clk 0:00:36]} 42. Rf7 {[%clk 0:00:04]}  Ne8 {[%clk 0:00:21]} 43. g7 {[%clk 0:00:03]}  Nxg7 {[%clk 0:00:21]} 44. Rxg7 {[%clk 0:00:04]}  Ra5 {[%clk 0:00:22]} 45. f4 {[%clk 0:00:03]}  Ra2+ {[%clk 0:00:21]} 46. Kg3 {[%clk 0:00:04]}  Ra3+ {[%clk 0:00:22]} 47. Kg4 {[%clk 0:00:04]}  Ke8 {[%clk 0:00:23]} 48. Kg5 {[%clk 0:00:05]}  Kf8 {[%clk 0:00:23]} 49. Kh6 {[%clk 0:00:06]}  Rh3 {[%clk 0:00:22]} 50. h5 {[%clk 0:00:07]}  Rh1 {[%clk 0:00:21]} 51. Ng6+ {[%clk 0:00:08]}  Ke8 {[%clk 0:00:21]} 52. Re7+ {[%clk 0:00:09]}  Kd8 {[%clk 0:00:21]} 53. Rxe6 {[%clk 0:00:09]}  Ra1 {[%clk 0:00:21]} 54. Rf6 {[%clk 0:00:10]}  Ra3 {[%clk 0:00:21]} 55. Rf5 {[%clk 0:00:11]}  Ra5 {[%clk 0:00:21]} 56. Rxa5 {[%clk 0:00:10]} 1-0


[Site "https://www.chess.com"]

[Event "Titled Tuesday Blitz June 6 Early 2023"]
[White "Garcia Blanco, Omar"]
[Black "Ciuffoletti, Paolo"]
[WhiteFideId "2287153"]
[BlackFideId "807630"]
[WhiteElo "2356"]
[BlackElo "2143"]
[Result "1-0"]
[Round "1"]
[TimeControl "180+2"]
[Date "2023.06.06"]
[WhiteClock "0:02:32"]
[BlackClock "0:00:44"]
[Board "188"]

1. e4 {[%clk 0:03:00]}  c5 {[%clk 0:02:59]} 2. Nc3 {[%clk 0:03:01]}  Nc6 {[%clk 0:02:58]} 3. Bb5 {[%clk 0:03:01]}  e6 {[%clk 0:02:56]} 4. Bxc6 {[%clk 0:03:01]}  bxc6 {[%clk 0:02:56]} 5. d3 {[%clk 0:03:02]}  d6 {[%clk 0:02:55]} 6. f4 {[%clk 0:03:03]}  Ne7 {[%clk 0:02:54]} 7. Nf3 {[%clk 0:03:04]}  g6 {[%clk 0:02:54]} 8. O-O {[%clk 0:03:01]}  Bg7 {[%clk 0:02:54]} 9. e5 {[%clk 0:03:02]}  d5 {[%clk 0:02:44]} 10. Na4 {[%clk 0:03:01]}  Qa5 {[%clk 0:02:33]} 11. c4 {[%clk 0:02:58]}  dxc4 {[%clk 0:02:25]} 12. dxc4 {[%clk 0:02:59]}  Ba6 {[%clk 0:02:23]} 13. b3 {[%clk 0:02:57]}  Rd8 {[%clk 0:02:15]} 14. Qe1 {[%clk 0:02:57]}  Qxe1 {[%clk 0:02:09]} 15. Rxe1 {[%clk 0:02:58]}  Nf5 {[%clk 0:02:02]} 16. Nxc5 {[%clk 0:02:58]}  Bc8 {[%clk 0:02:02]} 17. g4 {[%clk 0:02:50]}  Nh6 {[%clk 0:01:51]} 18. h3 {[%clk 0:02:48]}  f6 {[%clk 0:01:40]} 19. Ne4 {[%clk 0:02:39]}  O-O {[%clk 0:01:36]} 20. exf6 {[%clk 0:02:37]}  Bxf6 {[%clk 0:01:28]} 21. Nxf6+ {[%clk 0:02:38]}  Rxf6 {[%clk 0:01:25]} 22. g5 {[%clk 0:02:38]}  Rf5 {[%clk 0:01:07]} 23. gxh6 {[%clk 0:02:38]}  Rd3 {[%clk 0:01:02]} 24. Be3 {[%clk 0:02:32]}  c5 {[%clk 0:00:58]} 25. Rad1 {[%clk 0:02:31]}  Rxd1 {[%clk 0:00:44]} 26. Rxd1 {[%clk 0:02:32]} 1-0


[Site "https://www.chess.com"]